bitfinex/quotes_BTCUSD_20250922
["timestamp","ask_amount","ask_price","bid_price","bid_amount"]
[1758561621231,0.01247032,112550.0,112540.0,0.63196549]
[1758561621552,0.01247032,112550.0,112540.0,1.01288549]
[1758561622430,0.01247032,112550.0,112540.0,0.63196549]
[1758561622592,0.01247032,112550.0,112540.0,1.01284549]
[1758561622789,0.01247032,112550.0,112540.0,0.68701616]
[1758561622994,0.01247032,112550.0,112540.0,1.01284549]
[1758561623613,0.01247032,112550.0,112540.0,1.33867482]
[1758561623814,0.01247032,112550.0,112540.0,1.01284549]
[1758561623991,0.01247032,112550.0,112540.0,0.63196549]
[1758561624193,0.01247032,112550.0,112540.0,1.01280549]
[1758561624393,0.01247032,112550.0,112540.0,0.63196549]
[1758561624735,0.01247032,112550.0,112540.0,1.01280549]
[1758561625057,0.01247032,112550.0,112540.0,0.63196549]
[1758561625196,0.01247032,112550.0,112540.0,0.29613616]
[1758561625197,0.33829965,112550.0,112540.0,0.29613616]
[1758561625396,0.34025965,112550.0,112540.0,0.29613616]
[1758561625671,0.36593965,112550.0,112540.0,0.26598426]
[1758561626042,0.36593965,112550.0,112540.0,0.55074426]
[1758561626224,0.36593965,112550.0,112540.0,0.58089616]
[1758561627064,0.39264664,112550.0,112540.0,0.58089616]
[1758561630931,0.39264664,112550.0,112540.0,0.29613616]
[1758561631099,0.39264664,112550.0,112540.0,0.67685616]
[1758561631299,0.71847597,112550.0,112540.0,0.11842157]
[1758561631519,0.71847597,112550.0,112540.0,0.58081616]
[1758561632259,0.71847597,112550.0,112540.0,0.29613616]
[1758561632472,0.71847597,112550.0,112540.0,0.58081616]
[1758561635265,0.06681731,112550.0,112540.0,0.58081616]
[1758561635470,0.39264664,112550.0,112540.0,0.58081616]
[1758561635870,0.06681731,112550.0,112540.0,0.58081616]
[1758561636101,0.39264664,112550.0,112540.0,0.58081616]
[1758561639774,0.71847597,112550.0,112540.0,0.29613616]
[1758561639984,0.71847597,112550.0,112540.0,0.58073616]
[1758561640889,0.71847597,112550.0,112540.0,0.11842157]
[1758561641133,0.71847597,112550.0,112540.0,0.08826967]
[1758561641303,1.05847597,112550.0,112540.0,0.37282967]
[1758561641840,1.05847597,112550.0,112540.0,0.08826967]
[1758561642035,1.4243053,112550.0,112540.0,0.37282967]
[1758561642239,1.4243053,112550.0,112540.0,0.28756]
[1758561642458,1.09847597,112550.0,112540.0,0.28756]
[1758561642661,1.4243053,112550.0,112540.0,0.003]
[1758561642870,1.4243053,112550.0,112540.0,0.28756]
[1758561643431,1.7088653,112550.0,112540.0,0.003]
[1758561643676,1.73363259,112550.0,112540.0,0.003]
[1758561644544,1.73662523,112550.0,112540.0,0.003]
[1758561644982,0.34,112540.0,112530.0,0.16244882]
[1758561645181,1.31960799,112540.0,112530.0,0.16244882]
[1758561645323,1.34729799,112540.0,112530.0,0.16244882]
[1758561646210,1.34829799,112540.0,112530.0,0.16244882]
[1758561646603,1.37501371,112540.0,112530.0,0.16244882]
[1758561647123,1.37901371,112540.0,112530.0,0.16544882]
[1758561651280,1.02854438,112540.0,112530.0,0.16544882]
[1758561651480,1.05318438,112540.0,112530.0,0.16544882]
[1758561652188,1.37901371,112540.0,112530.0,0.35408882]
[1758561654446,1.37901371,112540.0,112530.0,0.5318192]
[1758561654916,1.37901371,112540.0,112530.0,0.35408882]
[1758561655327,1.37901371,112540.0,112530.0,0.5318192]
[1758561655656,0.37171572,112540.0,112530.0,0.61708887]
[1758561655857,1.02337438,112540.0,112530.0,0.61708887]
[1758561656291,0.68337438,112540.0,112530.0,0.64724077]
[1758561658795,0.03171572,112540.0,112530.0,0.64724077]
[1758561658978,0.68337438,112540.0,112530.0,0.64724077]
[1758561659811,0.03171572,112540.0,112530.0,0.36276077]
[1758561660016,0.33082933,112540.0,112530.0,0.74324077]
[1758561660834,0.005,112540.0,112530.0,0.74324077]
[1758561661238,0.005,112540.0,112530.0,1.39489943]
[1758561661462,0.005,112540.0,112530.0,1.74489943]
[1758561661860,0.00047032,112550.0,112540.0,0.21786649]
[1758561662057,0.00047032,112550.0,112540.0,0.86952515]
[1758561662257,0.00047032,112550.0,112540.0,0.86944274]
[1758561663103,0.00047032,112550.0,112540.0,0.54361341]
[1758561664151,0.00047032,112550.0,112540.0,0.92793341]
[1758561664353,0.00347032,112550.0,112540.0,0.93893341]
[1758561664526,0.00347032,112550.0,112540.0,0.61810408]
[1758561664744,0.00347032,112550.0,112540.0,0.94393341]
[1758561664962,0.00347032,112550.0,112540.0,1.02920308]
[1758561666109,0.00347032,112550.0,112540.0,1.03819455]
[1758561666310,0.00347032,112550.0,112540.0,0.71236522]
[1758561666511,0.00347032,112550.0,112540.0,0.97970388]
[1758561666897,0.00347032,112550.0,112540.0,1.36382388]
[1758561667113,0.00347032,112550.0,112540.0,0.65387455]
[1758561667316,0.00347032,112550.0,112540.0,1.03795455]
[1758561667518,0.00347032,112550.0,112540.0,0.64488308]
[1758561667798,0.00347032,112550.0,112540.0,1.02884308]
[1758561668251,0.00347032,112550.0,112540.0,1.69467241]
[1758561668608,0.00347032,112550.0,112540.0,1.36884308]
[1758561668850,0.00347032,112550.0,112540.0,1.36896308]
[1758561669050,0.00347032,112550.0,112540.0,1.69479241]
[1758561671035,0.00347032,112550.0,112540.0,0.65905375]
[1758561671309,0.00347032,112550.0,112540.0,1.703355]
[1758561671740,0.00347032,112550.0,112540.0,1.37752567]
[1758561671888,0.00347032,112550.0,112540.0,0.99368567]
[1758561672307,0.00347032,112550.0,112540.0,1.37740567]
[1758561672877,0.32582933,112570.0,112560.0,0.20783491]
[1758561673081,0.32597037,112570.0,112560.0,0.58070458]
[1758561674071,0.32597037,112570.0,112560.0,0.58270458]
[1758561674281,0.32797037,112570.0,112560.0,0.58770458]
[1758561675319,0.00214104,112570.0,112560.0,0.58770458]
[1758561675545,0.32797037,112570.0,112560.0,0.58770458]
[1758561675742,0.32797037,112570.0,112560.0,0.65299535]
[1758561676099,0.00214104,112570.0,112560.0,0.65295535]
[1758561676301,0.32797037,112570.0,112560.0,0.74899535]
[1758561676588,0.00214104,112570.0,112560.0,0.74899535]
[1758561677300,0.00214104,112570.0,112560.0,0.36559535]
[1758561677760,0.00214104,112570.0,112560.0,0.74899535]
[1758561677979,0.00214104,112570.0,112560.0,0.36559535]
[1758561678191,0.00214104,112570.0,112560.0,0.74899535]
[1758561679677,0.00214104,112570.0,112560.0,0.36559535]
[1758561679857,0.00214104,112570.0,112560.0,0.74895535]
[1758561681385,0.00214104,112570.0,112560.0,0.36559535]
[1758561681602,0.00214104,112570.0,112560.0,0.74867535]
[1758561685473,0.00214104,112570.0,112560.0,1.18298368]
[1758561685673,0.00214104,112570.0,112560.0,0.74867535]
[1758561687212,0.00214104,112570.0,112560.0,1.18298368]
[1758561687428,0.00214104,112570.0,112560.0,1.19298368]
[1758561687634,0.00825306,112590.0,112580.0,0.17765144]
[1758561687840,0.00837834,112590.0,112580.0,0.57979301]
[1758561688048,0.00837834,112590.0,112580.0,0.29307301]
[1758561688429,0.00837834,112590.0,112580.0,0.67599301]
[1758561689093,0.00012528,112590.0,112580.0,0.72738134]
[1758561689268,0.00012528,112590.0,112580.0,1.1292112]
[1758561689269,0.00939789,112590.0,112580.0,1.1292112]
[1758561689500,0.00112528,112590.0,112580.0,0.58995301]
[1758561689706,0.00112528,112590.0,112580.0,0.68599301]
[1758561689909,0.00612528,112590.0,112580.0,0.68799301]
[1758561690115,0.00612528,112590.0,112580.0,0.59039301]
[1758561690116,0.00012528,112590.0,112580.0,0.59039301]
[1758561690322,0.00012528,112590.0,112580.0,0.68843301]
[1758561690497,0.00212528,112590.0,112580.0,0.69443301]
[1758561690734,0.00212528,112590.0,112580.0,0.59911301]
[1758561690940,0.00012528,112590.0,112580.0,0.51150157]
[1758561691140,0.00012528,112590.0,112580.0,0.69015301]
[1758561691141,0.01139099,112590.0,112580.0,0.69015301]
[1758561691564,0.44569932,112590.0,112580.0,0.30411301]
[1758561691972,0.01139099,112590.0,112580.0,0.30411301]
[1758561692177,0.01139099,112590.0,112580.0,0.30811301]
[1758561692357,0.44569932,112590.0,112580.0,0.30811301]
[1758561692564,0.44569932,112590.0,112580.0,0.69231301]
[1758561693517,0.44769932,112590.0,112580.0,0.30811301]
[1758561693699,0.47383932,112590.0,112580.0,0.27796111]
[1758561694138,0.47383932,112590.0,112580.0,0.59623301]
[1758561694310,0.47383932,112590.0,112580.0,0.30811301]
[1758561694530,0.47383932,112590.0,112580.0,0.69219301]
[1758561694769,0.03953099,112590.0,112580.0,0.69219301]
[1758561694968,0.47383932,112590.0,112580.0,0.69219301]
[1758561695096,0.03953099,112590.0,112580.0,0.69219301]
[1758561695293,0.03953099,112590.0,112580.0,0.59619301]
[1758561695494,0.47383932,112590.0,112580.0,0.30811301]
[1758561696311,0.03953099,112590.0,112580.0,0.30811301]
[1758561696554,0.44569932,112590.0,112580.0,0.30811301]
[1758561696862,0.44569932,112590.0,112580.0,0.69227301]
[1758561697271,0.44569932,112590.0,112580.0,0.69223301]
[1758561697489,0.44569932,112590.0,112580.0,0.30811301]
[1758561697953,0.44569932,112590.0,112580.0,0.69219301]
[1758561698394,0.45071932,112590.0,112580.0,0.59619301]
[1758561698566,0.47383932,112590.0,112580.0,0.69215301]
[1758561699310,0.03953099,112590.0,112580.0,0.69215301]
[1758561699464,0.44569932,112590.0,112580.0,0.69215301]
[1758561700402,0.45071932,112590.0,112580.0,0.69215301]
[1758561700610,0.44569932,112590.0,112580.0,0.69215301]
[1758561700818,0.01139099,112590.0,112580.0,0.69215301]
[1758561701130,0.44569932,112590.0,112580.0,0.69215301]
[1758561701332,0.01139099,112590.0,112580.0,0.69215301]
[1758561701538,0.44569932,112590.0,112580.0,0.69215301]
[1758561701973,0.44569932,112590.0,112580.0,0.30811301]
[1758561702183,0.44569598,112590.0,112580.0,1.07659301]
[1758561702383,0.01138765,112590.0,112580.0,1.07659301]
[1758561702807,0.44569598,112590.0,112580.0,1.07659301]
[1758561703232,0.01138765,112590.0,112580.0,1.07659301]
[1758561705334,0.01138765,112590.0,112580.0,0.59623301]
[1758561705621,0.44569598,112590.0,112580.0,1.07631301]
[1758561705935,0.01138765,112590.0,112580.0,1.07631301]
[1758561706148,0.44569598,112590.0,112580.0,1.07631301]
[1758561706551,0.01138765,112590.0,112580.0,1.07631301]
[1758561708239,0.00312528,112590.0,112580.0,1.07631301]
[1758561708401,0.00312528,112590.0,112580.0,1.52062134]
[1758561709196,0.00312528,112590.0,112580.0,1.08631301]
[1758561709593,0.00312528,112590.0,112580.0,0.99111301]
[1758561709796,0.00312528,112590.0,112580.0,1.08711301]
[1758561710205,0.00312528,112590.0,112580.0,0.99111301]
[1758561710468,0.00312528,112590.0,112580.0,1.08695301]
[1758561712667,0.00312528,112590.0,112580.0,0.31811301]
[1758561712874,0.00312528,112590.0,112580.0,1.08691301]
[1758561714092,0.00312528,112590.0,112580.0,0.31811301]
[1758561714294,0.00312528,112590.0,112580.0,1.08663301]
[1758561718883,0.00312528,112590.0,112580.0,0.75242134]
[1758561719095,0.00312528,112590.0,112580.0,0.31811301]
[1758561719318,0.00312528,112590.0,112580.0,1.08635301]
[1758561720598,0.0004,112600.0,112590.0,0.20778756]
[1758561720819,0.0004,112600.0,112590.0,0.29305723]
[1758561721025,0.0004,112610.0,112600.0,0.20777179]
[1758561721239,0.0004,112610.0,112600.0,0.58116146]
[1758561721841,0.00537,112610.0,112600.0,0.58116146]
[1758561722927,0.00737,112610.0,112600.0,0.58316146]
[1758561723139,0.46544833,112610.0,112600.0,0.29504146]
[1758561723329,0.47447376,112610.0,112600.0,0.29504146]
[1758561723530,0.47447376,112610.0,112600.0,1.06344146]
[1758561723988,0.47447376,112610.0,112600.0,1.06444146]
[1758561724911,0.47447376,112610.0,112600.0,1.13010228]
[1758561725361,0.47447376,112610.0,112600.0,0.36170228]
[1758561725688,0.47447376,112610.0,112600.0,1.12986228]
[1758561726371,0.03114,112610.0,112600.0,1.12986228]
[1758561726511,0.00737,112610.0,112600.0,1.12986228]
[1758561726696,0.0024,112610.0,112600.0,1.12986228]
[1758561726905,0.00737,112610.0,112600.0,1.12986228]
[1758561727152,0.03114,112610.0,112600.0,1.12986228]
[1758561727903,0.03114,112610.0,112600.0,0.64970228]
[1758561728111,0.03114,112610.0,112600.0,1.12974228]
[1758561729139,0.46544833,112610.0,112600.0,1.12974228]
[1758561729543,0.46544833,112610.0,112600.0,1.12962228]
[1758561730961,0.03114,112610.0,112600.0,1.12962228]
[1758561731172,0.46544833,112610.0,112600.0,1.12962228]
[1758561731800,0.46544833,112610.0,112600.0,1.12942228]
[1758561734965,0.46544833,112610.0,112600.0,0.36170228]
[1758561735173,0.46544833,112610.0,112600.0,1.12950228]
[1758561737414,0.03114,112610.0,112600.0,1.12950228]
[1758561737621,0.46544833,112610.0,112600.0,0.36170228]
[1758561737821,0.46544833,112610.0,112600.0,1.12934228]
[1758561738181,0.03114,112610.0,112600.0,1.12934228]
[1758561738379,0.46544833,112610.0,112600.0,1.12934228]
[1758561738582,0.32987298,112610.0,112600.0,1.12934228]
[1758561738812,0.00437,112610.0,112600.0,1.12934228]
[1758561739162,0.32987298,112610.0,112600.0,1.12934228]
[1758561739819,0.33281298,112610.0,112600.0,1.12934228]
[1758561739960,0.32987298,112610.0,112600.0,1.12934228]
[1758561740171,0.33281298,112610.0,112600.0,1.12934228]
[1758561740377,0.32987298,112610.0,112600.0,1.12934228]
[1758561741418,0.00437,112610.0,112600.0,1.12934228]
[1758561741648,0.0024,112610.0,112600.0,1.12934228]
[1758561741861,0.32790298,112610.0,112600.0,1.12934228]
[1758561742397,0.0024,112610.0,112600.0,1.12934228]
[1758561743320,0.0024,112610.0,112600.0,1.45484526]
[1758561744514,0.0024,112610.0,112600.0,0.36170228]
[1758561744668,0.0024,112610.0,112600.0,1.12910228]
[1758561744872,0.0024,112610.0,112600.0,1.45360526]
[1758561745324,0.0004,112610.0,112600.0,1.13110228]
[1758561745522,0.0004,112610.0,112600.0,1.45660526]
[1758561745817,0.0024,112610.0,112600.0,1.46560526]
[1758561746039,0.0024,112610.0,112600.0,1.14010228]
[1758561746205,0.0024,112610.0,112600.0,1.46560526]
[1758561747671,0.0024,112610.0,112600.0,0.98564526]
[1758561747877,0.0024,112610.0,112600.0,1.46564526]
[1758561749943,0.0024,112610.0,112600.0,1.46568526]
[1758561752249,0.0024,112610.0,112600.0,1.14018228]
[1758561752473,0.0024,112610.0,112600.0,1.46568526]
[1758561752775,0.0024,112610.0,112600.0,0.37270228]
[1758561753203,0.0024,112610.0,112600.0,0.69820526]
[1758561753385,0.00448,112610.0,112600.0,0.37270228]
[1758561753631,0.35778298,112610.0,112600.0,0.37270228]
[1758561753830,0.02706,112610.0,112600.0,0.75578228]
[1758561754054,0.00762,112610.0,112600.0,0.37270228]
[1758561754239,0.0024,112610.0,112600.0,1.46528526]
[1758561754469,0.0024,112610.0,112600.0,1.13978228]
[1758561755287,0.0024,112610.0,112600.0,1.46528526]
[1758561756637,0.0024,112610.0,112600.0,1.13978228]
[1758561756838,0.0024,112610.0,112600.0,1.46028526]
[1758561757301,0.0024,112610.0,112600.0,1.46528526]
[1758561757591,0.0024,112610.0,112600.0,1.46028526]
[1758561757998,0.0004,112610.0,112600.0,1.13078228]
[1758561758202,0.0004,112610.0,112600.0,1.45628526]
[1758561758508,0.0014,112610.0,112600.0,1.45628526]
[1758561758724,0.0014,112610.0,112600.0,0.36370228]
[1758561758951,0.0024,112610.0,112600.0,0.69120526]
[1758561759175,0.0024,112610.0,112600.0,1.45836526]
[1758561759395,0.0024,112610.0,112600.0,0.69120526]
[1758561759834,0.0024,112610.0,112600.0,1.45832526]
[1758561761381,0.00448,112610.0,112600.0,0.36570228]
[1758561761607,0.03228,112610.0,112600.0,1.13282228]
[1758561761844,0.03228,112610.0,112600.0,0.69120526]
[1758561762085,0.00762,112610.0,112600.0,0.69120526]
[1758561762306,0.00762,112610.0,112600.0,1.45844526]
[1758561762968,0.00448,112610.0,112600.0,1.45844526]
[1758561763177,0.0024,112610.0,112600.0,1.45844526]
[1758561763818,0.00762,112610.0,112600.0,1.45844526]
[1758561764245,0.00762,112610.0,112600.0,0.97844526]
[1758561764506,0.02706,112610.0,112600.0,1.07444526]
[1758561764915,0.03228,112610.0,112600.0,0.36570228]
[1758561765129,0.03228,112610.0,112600.0,0.97828526]
[1758561765282,0.03228,112610.0,112600.0,0.74878228]
[1758561765480,0.03228,112610.0,112600.0,1.07428526]
[1758561768219,0.02914,112610.0,112600.0,1.07428526]
[1758561768429,0.03228,112610.0,112600.0,1.07428526]
[1758561768637,0.00762,112610.0,112600.0,1.07428526]
[1758561769240,0.0024,112610.0,112600.0,0.74878228]
[1758561769592,0.0024,112610.0,112600.0,1.07428526]
[1758561773805,0.0024,112610.0,112600.0,1.39978824]
[1758561774200,0.0024,112610.0,112600.0,1.07428526]
[1758561774403,0.0024,112610.0,112600.0,1.39978824]
[1758561774639,0.36261261,112630.0,112620.0,0.17758835]
[1758561774640,0.0004,112630.0,112620.0,0.17758835]
[1758561774825,0.0004,112630.0,112620.0,1.58037588]
[1758561774826,0.00054096,112630.0,112620.0,1.58037588]
[1758561775228,0.0004,112640.0,112630.0,0.88322746]
[1758561775431,0.0004,112640.0,112630.0,1.44841713]
[1758561776064,0.0004,112640.0,112630.0,1.45748494]
[1758561776652,0.0004,112640.0,112630.0,1.78298792]
[1758561776653,1e-08,112640.0,112630.0,1.78298792]
[1758561777045,1e-08,112640.0,112630.0,1.78698792]
[1758561777617,0.037104,112660.0,112650.0,0.20769295]
[1758561777861,0.033964,112660.0,112650.0,0.9047056]
[1758561778819,0.034964,112660.0,112650.0,0.9047056]
[1758561779004,0.040154,112660.0,112650.0,1.0005856]
[1758561779240,0.064694,112660.0,112650.0,1.0005856]
[1758561780059,0.034964,112660.0,112650.0,1.0005856]
[1758561780419,0.041964,112660.0,112650.0,1.0015856]
[1758561781505,0.041964,112660.0,112650.0,0.6194656]
[1758561781714,0.041964,112660.0,112650.0,1.0014256]
[1758561782107,0.041964,112660.0,112650.0,0.38992262]
[1758561782108,0.72269996,112660.0,112650.0,0.38992262]
[1758561782325,0.72269996,112660.0,112650.0,0.67588262]
[1758561782755,0.72269996,112660.0,112650.0,0.29396262]
[1758561782934,0.72269996,112660.0,112650.0,0.26381072]
[1758561783138,0.72269996,112660.0,112650.0,0.37226967]
[1758561783283,0.72269996,112660.0,112650.0,0.29396262]
[1758561783485,0.72269996,112660.0,112650.0,0.11642157]
[1758561783692,0.72269996,112660.0,112650.0,0.67588262]
[1758561783946,0.071694,112660.0,112650.0,0.67588262]
[1758561784147,0.72269996,112660.0,112650.0,0.29396262]
[1758561784359,0.071694,112660.0,112650.0,0.67696262]
[1758561784561,0.72269996,112660.0,112650.0,0.29396262]
[1758561784790,0.72269996,112660.0,112650.0,0.67696262]
[1758561786487,0.72269996,112660.0,112650.0,0.11642157]
[1758561786904,0.72269996,112660.0,112650.0,0.49934157]
[1758561787128,0.72269996,112660.0,112650.0,0.11642157]
[1758561787326,1.42820294,112660.0,112650.0,0.18222967]
[1758561787532,1.42820294,112660.0,112650.0,0.46926967]
[1758561788619,2.40471188,112660.0,112650.0,0.001]
[1758561788834,3.48478073,112660.0,112650.0,0.28796]
[1758561789123,1.79047179,112660.0,112650.0,0.28796]
[1758561789755,0.81396285,112660.0,112650.0,0.28796]
[1758561789957,1.79047179,112660.0,112650.0,0.28796]
[1758561790114,1.62413779,112660.0,112650.0,0.28796]
[1758561790706,1.53660779,112660.0,112650.0,0.28696]
[1758561790910,1.42844779,112660.0,112650.0,0.28896]
[1758561791095,1.44344779,112660.0,112650.0,0.28896]
[1758561791299,1.44744779,112660.0,112650.0,0.28896]
[1758561797461,1.43920294,112660.0,112650.0,0.28896]
[1758561797794,1.11369996,112660.0,112650.0,0.28896]
[1758561798444,1.11369996,112660.0,112650.0,0.37422967]
[1758561798649,0.89649903,112660.0,112650.0,0.37422967]
[1758561803346,0.462694,112660.0,112650.0,0.55177072]
[1758561803771,0.89649903,112660.0,112650.0,0.55177072]
[1758561804707,0.89649903,112660.0,112650.0,0.37422967]
[1758561806639,0.83195903,112660.0,112650.0,0.55177072]
[1758561806852,0.48676903,112660.0,112650.0,0.58192262]
[1758561807515,0.48676903,112660.0,112650.0,0.58228262]
[1758561807701,0.51518903,112660.0,112650.0,0.67824262]
[1758561807905,0.51518903,112660.0,112650.0,0.67816262]
[1758561808768,0.51518903,112660.0,112650.0,0.29496262]
[1758561808961,0.51518903,112660.0,112650.0,0.67812262]
[1758561809162,0.51518903,112660.0,112650.0,0.58208262]
[1758561809353,0.51518903,112660.0,112650.0,0.67804262]
[1758561810126,0.51518903,112660.0,112650.0,0.11742157]
[1758561810559,0.89518903,112660.0,112650.0,0.08726967]
[1758561810786,0.89518903,112660.0,112650.0,0.37426967]
[1758561811018,0.90344409,112660.0,112650.0,0.37426967]
[1758561813304,0.90344409,112660.0,112650.0,0.08726967]
[1758561813508,0.90344409,112660.0,112650.0,0.37402967]
[1758561814437,0.89518903,112660.0,112650.0,0.37402967]
[1758561815385,0.90345273,112660.0,112650.0,0.37402967]
[1758561815587,0.89518903,112660.0,112650.0,0.08726967]
[1758561815784,0.89518903,112660.0,112650.0,0.37378967]
[1758561815992,0.89518903,112660.0,112650.0,0.08726967]
[1758561816317,0.89518903,112660.0,112650.0,0.37378967]
[1758561817269,0.90345627,112660.0,112650.0,0.37378967]
[1758561818185,0.90345627,112660.0,112650.0,0.08726967]
[1758561818432,0.90345627,112660.0,112650.0,0.37374967]
[1758561823607,0.90345627,112660.0,112650.0,0.08726967]
[1758561823809,0.90345627,112660.0,112650.0,0.37326967]
[1758561826556,0.90345627,112660.0,112650.0,0.37294967]
[1758561827314,0.90345627,112660.0,112650.0,0.08726967]
[1758561827727,0.90345627,112660.0,112650.0,0.37286967]
[1758561828228,0.90345627,112660.0,112650.0,0.37282967]
[1758561835838,0.87503627,112660.0,112650.0,0.37282967]
[1758561836481,0.87720627,112660.0,112650.0,0.37282967]
[1758561837296,0.87720627,112660.0,112650.0,0.46866967]
[1758561837496,0.88039627,112660.0,112650.0,0.08726967]
[1758561837719,0.90514627,112660.0,112650.0,0.08726967]
[1758561838290,0.90514627,112660.0,112650.0,0.37270967]
[1758561838490,0.90514627,112660.0,112650.0,0.08726967]
[1758561838671,0.90514627,112660.0,112650.0,0.37270967]
[1758561839120,0.90514627,112660.0,112650.0,0.08726967]
[1758561839271,0.88039627,112660.0,112650.0,0.08726967]
[1758561839475,0.90514627,112660.0,112650.0,0.37270967]
[1758561839715,0.90514627,112660.0,112650.0,0.08726967]
[1758561839926,0.91135014,112660.0,112650.0,0.37270967]
[1758561841431,0.91135014,112660.0,112650.0,0.08726967]
[1758561841702,0.91135014,112660.0,112650.0,0.37270967]
[1758561842393,0.91135014,112660.0,112650.0,0.08726967]
[1758561842602,0.91135014,112660.0,112650.0,0.37266967]
[1758561846385,0.91135014,112660.0,112650.0,0.002]
[1758561846627,0.91135014,112660.0,112650.0,0.2874]
[1758561846832,0.91135014,112660.0,112650.0,0.002]
[1758561847038,0.91135014,112660.0,112650.0,0.2874]
[1758561848778,0.91135014,112660.0,112650.0,0.002]
[1758561848779,2.5830192,112660.0,112650.0,0.002]
[1758561849006,2.5643562,112660.0,112650.0,0.002]
[1758561849321,2.4072732,112660.0,112650.0,0.002]
[1758561851926,2.0370292,112660.0,112650.0,0.002]
[1758561852153,1.7440662,112660.0,112650.0,0.002]
[1758561853559,2.0294662,112660.0,112650.0,0.002]
[1758561854007,1.7440662,112660.0,112650.0,0.002]
[1758561854226,2.0294662,112660.0,112650.0,0.002]
[1758561855539,1.18841391,112660.0,112650.0,0.002]
[1758561855747,2.05602397,112660.0,112650.0,0.002]
[1758561859356,1.77062397,112660.0,112650.0,0.002]
[1758561859735,2.05602397,112660.0,112650.0,0.002]
[1758561860430,2.50482397,112660.0,112650.0,0.002]
[1758561860594,3.59020893,112660.0,112650.0,0.002]
[1758561862850,2.61371142,112660.0,112650.0,0.002]
[1758561863049,2.61368754,112660.0,112650.0,0.002]
[1758561863519,3.59018505,112660.0,112650.0,0.002]
[1758561863923,3.56362728,112660.0,112650.0,0.002]
[1758561864772,3.56362784,112660.0,112650.0,0.002]
[1758561864965,2.58713033,112660.0,112650.0,0.002]
[1758561865371,3.45418057,112660.0,112650.0,0.002]
[1758561865975,3.16878057,112660.0,112650.0,0.002]
[1758561866194,3.54614057,112660.0,112650.0,0.002]
[1758561866356,3.45014057,112660.0,112650.0,0.002]
[1758561866721,3.54614057,112660.0,112650.0,0.002]
[1758561866916,3.16478057,112660.0,112650.0,0.002]
[1758561867127,3.45014057,112660.0,112650.0,0.002]
[1758561867338,0.57642643,112650.0,112610.0,0.17646631]
[1758561867543,0.99099834,112620.0,112610.0,0.26187694]
[1758561867980,1.0176933,112620.0,112610.0,0.26187694]
[1758561868589,1.0176933,112620.0,112610.0,0.26587694]
[1758561868763,1.0196933,112620.0,112610.0,0.19461063]
[1758561869773,1.0596933,112620.0,112610.0,0.09861063]
[1758561873278,1.0596933,112620.0,112610.0,0.08941063]
[1758561873648,1.39036247,112620.0,112610.0,0.08941063]
[1758561873859,1.87754082,112620.0,112610.0,0.00414096]
[1758561874071,2.75786447,112620.0,112610.0,0.00414096]
[1758561874893,2.75785924,112620.0,112610.0,0.00414096]
[1758561875099,2.75585924,112620.0,112610.0,0.00014096]
[1758561875278,2.76085924,112620.0,112610.0,0.00214096]
[1758561875408,2.76085432,112620.0,112610.0,0.00214096]
[1758561875861,2.08623132,112620.0,112610.0,0.00214096]
[1758561876101,2.36038132,112620.0,112610.0,0.00214096]
[1758561876508,1.86306132,112620.0,112610.0,0.00214096]
[1758561877804,2.09241232,112620.0,112610.0,0.00214096]
[1758561878014,1.80705232,112620.0,112610.0,0.00214096]
[1758561878449,2.06159532,112620.0,112610.0,0.00214096]
[1758561878836,1.95090532,112620.0,112610.0,0.00214096]
[1758561880048,1.66554532,112620.0,112610.0,0.00214096]
[1758561880266,1.95090532,112620.0,112610.0,0.00214096]
[1758561880909,1.64131532,112620.0,112610.0,0.00214096]
[1758561881129,1.64131532,112620.0,112610.0,0.08741063]
[1758561881130,1.09362115,112620.0,112610.0,0.08741063]
[1758561881331,0.73093853,112620.0,112610.0,0.08741063]
[1758561881560,1.07093853,112620.0,112610.0,0.08741063]
[1758561882823,1.07093853,112620.0,112610.0,0.26501475]
[1758561883167,1.07093853,112620.0,112610.0,0.08741063]
[1758561883365,1.07093853,112620.0,112610.0,0.26501475]
[1758561883586,0.69719413,112620.0,112610.0,0.36213474]
[1758561884050,0.37169496,112620.0,112610.0,0.36213474]
[1758561884283,1.0226933,112620.0,112610.0,0.36213474]
[1758561885549,1.0226933,112620.0,112610.0,0.64745474]
[1758561888612,0.37169496,112620.0,112610.0,0.64745474]
[1758561888746,1.0226933,112620.0,112610.0,0.64745474]
[1758561890283,1.0226933,112620.0,112610.0,0.36213474]
[1758561890418,1.0226933,112620.0,112610.0,0.64741474]
[1758561892977,1.0226933,112620.0,112610.0,0.36213474]
[1758561893197,1.0226933,112620.0,112610.0,0.64737474]
[1758561894150,0.37169496,112620.0,112610.0,0.64737474]
[1758561894328,1.0226933,112620.0,112610.0,0.64737474]
[1758561895133,0.37169496,112620.0,112610.0,0.64737474]
[1758561895550,1.0226933,112620.0,112610.0,0.64737474]
[1758561896471,1.0226933,112620.0,112610.0,0.36213474]
[1758561896651,1.0226933,112620.0,112610.0,0.64737474]
[1758561896861,0.69719413,112620.0,112610.0,0.64737474]
[1758561897283,1.0226933,112620.0,112610.0,0.64737474]
[1758561897486,0.69719413,112620.0,112610.0,0.64737474]
[1758561897694,1.0226933,112620.0,112610.0,0.36213474]
[1758561897898,1.0226933,112620.0,112610.0,0.64737474]
[1758561899006,0.69719413,112620.0,112610.0,0.64737474]
[1758561899212,0.03169496,112620.0,112610.0,0.97287391]
[1758561899619,0.03169496,112620.0,112610.0,0.64737474]
[1758561900615,0.03169496,112620.0,112610.0,0.46977062]
[1758561900847,0.35719413,112620.0,112610.0,0.36213474]
[1758561901000,0.35719413,112620.0,112610.0,0.64733474]
[1758561901657,0.03169496,112620.0,112610.0,0.64733474]
[1758561902309,0.35719413,112620.0,112610.0,0.64733474]
[1758561903594,0.35719413,112620.0,112610.0,0.36213474]
[1758561903838,0.35719413,112620.0,112610.0,0.74329474]
[1758561904483,0.03169496,112620.0,112610.0,0.74329474]
[1758561904699,0.35719413,112620.0,112610.0,0.36213474]
[1758561904905,0.35719413,112620.0,112610.0,0.74329474]
[1758561906471,0.03169496,112620.0,112610.0,0.74329474]
[1758561906858,0.35719413,112620.0,112610.0,0.74329474]
[1758561907249,0.03169496,112620.0,112610.0,0.74329474]
[1758561907446,0.005,112620.0,112610.0,0.74329474]
[1758561907652,0.33049917,112620.0,112610.0,0.36213474]
[1758561907851,0.33049917,112620.0,112610.0,0.74325474]
[1758561910136,0.33049917,112620.0,112610.0,1.06875391]
[1758561910137,0.005,112620.0,112610.0,1.06875391]
[1758561910349,0.005,112620.0,112610.0,1.07875391]
[1758561910992,0.005,112620.0,112610.0,1.07871391]
[1758561911193,0.002,112620.0,112610.0,1.07671391]
[1758561911828,0.32549917,112630.0,112620.0,0.17758835]
[1758561912046,0.35515639,112640.0,112630.0,0.20772448]
[1758561912263,0.35727639,112640.0,112630.0,0.57807415]